Cogmind - Beta 12 @@@ ROGUE MODE // 2023.08.14 @ 08:51:50 Player: porridge Result: Destroyed by Y-45 Defender with Beam Rifle Performance ------------- Evolutions (1) 500 Regions Visited (2) 400 Robots Destroyed (23) 115 Value Destroyed (459) 459 Prototype IDs (0) 0 Alien Tech Used (0) 0 Bonus (0) 0 TOTAL SCORE: 1474 Bonus ------- None Cogmind --------- Core Integrity 0/400 Matter 260/300 Energy 100/100 System Corruption 4% Temperature Cool (27) Movement Core (1350) Ox26 Location -9/Materials Parts ------- > --- POWER (2) -------- (None) > --- PROPULSION (3) --- (None) > --- UTILITY (2) ------ Huge Storage Unit > --- WEAPON (2) ------- (None) > --- INVENTORY (25) --- Ion Engine Ion Engine Aluminum Leg Aluminum Leg Aluminum Leg Hover Unit Hover Unit Flight Unit Flight Unit Flight Unit Heat Sink Small Matter Pod (50) Large Matter Pod (89) Core Shielding Core Shielding Core Shielding Core Shielding Propulsion Shielding Tractor Beam Small Laser Datajack Mace Peak State ------------ > --- POWER ------------ Light Ion Engine > --- PROPULSION ------- Aluminum Leg Aluminum Leg Aluminum Leg > --- UTILITY ---------- Huge Storage Unit Hacking Suite > --- WEAPON ----------- Medium Laser Mace > --- INVENTORY -------- Ion Engine Ion Engine Ion Engine Aluminum Leg Aluminum Leg Aluminum Leg Aluminum Leg Hover Unit Hover Unit Flight Unit Flight Unit Heat Sink Heat Sink Small Matter Pod Large Matter Pod Core Shielding Core Shielding Core Shielding Core Shielding Propulsion Shielding Tractor Beam Small Laser Grenade Launcher Datajack [Rating: 13] Favorites ----------- Power Ion Engine Engine Ion Engine Propulsion Aluminum Leg Leg Aluminum Leg Utility Huge Storage Unit Device Heat Sink Storage Huge Storage Unit Hackware Hacking Suite Weapon Medium Laser Energy Gun Medium Laser Energy Cannon Beam Cannon Launcher Grenade Launcher Impact Weapon Mace Build | -11 -10 -9 ------- Run | Jun Mat Mat Slots Evolved 2 | . . 2 Power 1 | . . 1 Propulsion 1 | . . 1 Utility . | . . . Weapon . | . . . Parts Attached 23 | 5 9 9 Power 4 | 1 1 2 Engine 4 | 1 1 2 Core . | . . . Reactor . | . . . Propulsion 5 | 2 1 2 Treads . | . . . Leg 5 | 2 1 2 Wheel . | . . . Hover . | . . . Flight . | . . . Utility 5 | . 4 1 Device 2 | . 1 1 Storage 2 | . 2 . Processor . | . . . Hackware 1 | . 1 . Protection . | . . . Artifact . | . . . Weapon 9 | 2 3 4 Energy Gun 5 | 2 2 1 Energy Cannon 1 | . 1 . Ballistic Gun . | . . . Ballistic Cannon . | . . . Launcher 2 | . . 2 Special Weapon . | . . . Impact Weapon 1 | . . 1 Slashing Weapon . | . . . Piercing Weapon . | . . . Special Melee Weapon . | . . . Unidentified Prototypes . | . . . Corrupted Parts 1 | . . 1 System Corruption 4 | . . 4 Parts Lost 13 | . 2 11 Power 2 | . . 2 Propulsion 5 | . 1 4 Utility 1 | . . 1 Weapon 5 | . 1 4 Highest Loss Streak 6 | . 2 6 To Critical Strikes . | . . . Average Slot Usage (%) 90 | . 99 78 Engine 12 | . 14 10 Leg 27 | . 27 27 Device 4 | . 4 3 Storage 10 | . 10 11 Hackware 9 | . 12 6 Energy Gun 19 | . 27 8 Launcher 3 | . . 7 Impact Weapon 1 | . . 3 Naked Turns . | . . . Heaviest Build 93 | 7 89 93 Greatest Support 30 | 20 20 30 Greatest Overweight (x) 28 | . 4 28 Average Overweight (x) 1 | . 1 3 Largest Inventory Capacity 25 | 5 25 25 Average Capacity 20 | 5 18 25 Most Carried 25 | 5 20 25 Average Carried 14 | 2 10 22 Final Capacity 25 | 5 25 25 Final Carried 22 | 5 20 22 Class Distribution -------------------- 94% | Mutant 5% | Scavenger-Mutant Dominant Class ---------------- Mutant | -10/Materials Mutant | -9/Materials Resources | -11 -10 -9 ----------- Run | Jun Mat Mat Matter Collected 722 | 250 286 186 Remotely . | . . . Salvage Created 572 | 37 324 211 Parts 41 | 2 25 14 Haulers Intercepted . | . . . Recyclers Shooed 2 | . 1 1 Parts Field Recycled . | . . . Retrieved Matter . | . . . Parts Self-Destructed . | . . . Prevented . | . . . Kills | -11 -10 -9 ------- Run | Jun Mat Mat Combat Hostiles Destroyed 16 | 1 6 9 Melee 1 | . . 1 Guns 7 | . 6 1 AOE 8 | 1 . 7 Classes Destroyed 8 | 1 4 3 Builder 1 | . . 1 Recycler 2 | . 1 1 Mechanic 1 | . . 1 Operator 1 | . 1 . Watcher 2 | . 1 1 Swarmer 9 | . 3 6 Grunt 4 | 1 3 . Sentry 3 | . . 3 Best Kill Streak 8 | 1 4 8 Combat Bots Only 5 | 1 3 5 Max Kills in Single Turn 4 | 1 1 4 Gunslinging . | . . . Exploded 4 | 1 . 4 Melee 1 | . . 1 Uniques/NPCs Destroyed . | . . . Combat | -11 -10 -9 -------- Run | Jun Mat Mat Damage Taken 1482 | 33 377 1072 Core 479 | 11 66 402 Absorbed by Shields . | . . . Core Remaining (%) 82 | 95 69 . Volleys Fired 55 | 2 34 19 Largest 2 | 2 2 2 Hottest 110 | 90 110 90 Shots Fired 93 | 4 65 24 Gun 75 | 4 64 7 Cannon 1 | . 1 . Launcher 17 | . . 17 Special . | . . . Kinetic . | . . . Thermal 41 | 2 34 5 Explosive 17 | . . 17 Electromagnetic 35 | 2 31 2 Robot Hit Streak 9 | 2 4 9 Robot Miss Streak 5 | 1 5 2 Penetration Max . | . . . Secondary Targets 1 | . 1 . Max Gunslinging Chain 1 | . 1 . Shots Hit Robots 48 | 2 28 18 Core Hits 33 | 2 10 21 Critical Kills . | . . . Critical Parts Destroyed . | . . . Critical Strikes . | . . . Melee Attacks 1 | . . 1 Impact 1 | . . 1 Slashing . | . . . Piercing . | . . . Sneak Attacks . | . . . Combat Hostiles . | . . . Follow-up Attacks . | . . . Damage Inflicted 1351 | 68 445 838 Guns 463 | 26 390 47 Cannons 18 | . 18 . Explosions 813 | 41 22 750 Melee 41 | . . 41 Ramming 16 | 1 15 . Kinetic . | . . . Thermal 282 | 54 191 37 Explosive 750 | . . 750 Electromagnetic 262 | 13 239 10 Impact 41 | . . 41 Slashing . | . . . Piercing . | . . . Highest Corruption 4 | . 2 4 Average Corruption 2 | . 1 4 Corruption Purged . | . . . Corruption Blocked . | . . . Effects 14 | . 7 7 Message Errors 3 | . 2 1 Matter Fused 3 | . 1 2 Heat Flow Errors 2 | . 1 1 Energy Discharges 2 | . 1 1 Parts Rejected 1 | . 1 . Data Loss (minor) 2 | . . 2 Weapon Failures 1 | . 1 . Overload Shots . | . . . Overflow Damage 50 | . . 50 Projectiles . | . . . Explosions 50 | . . 50 Melee . | . . . Knockbacks . | . . . Impact . | . . . Kinetic . | . . . Secondary . | . . . Self-Inflicted Damage 136 | . 31 105 Shots 7 | . 1 6 Rammed . | . . . Targets Rammed 5 | 1 4 . Kicked 5 | 1 4 . Crushed . | . . . Highest Temperature 391 | 72 391 256 Average Temperature 146 | 42 164 75 Received Heat Transfer 357 | 18 114 225 Effects 4 | . 4 . Shutdowns 2 | . 2 . Matter Decay 1 | . 1 . Damage (minor) 1 | . 1 . Siege Activations . | . . . Robots Corrupted . | . . . Combat Hostiles . | . . . Parts Fried . | . . . Impact Corruptions . | . . . Robots Melted . | . . . Combat Hostiles . | . . . Parts Melted . | . . . Heat Transferred 717 | 87 531 99 Parts Sabotaged . | . . . Parts Stolen . | . . . Parts Stripped . | . . . Power Chain Reactions 2 | 1 1 . Missiles Intercepted . | . . . Alert | -11 -10 -9 ------- Run | Jun Mat Mat Peak Influence 244 | 20 88 244 Initial 13 | . 13 . Average 62 | 4 43 99 Maximum Alert Level 1 | . . 1 Low Security (%) 92 | 100 100 80 Level 1 7 | . . 19 Level 2 . | . . . Level 3 . | . . . Level 4 . | . . . Level 5 . | . . . High Security . | . . . Max Security . | . . . Squads Dispatched 1 | . 1 . Investigation 1 | . 1 . Extermination . | . . . Reinforcement . | . . . Assault . | . . . Garrison . | . . . Intercept . | . . . Searches Triggered . | . . . Construction Impeded . | . . . Haulers Reinforced . | . . . Active Scanning Responses . | . . . Cargo Convoy Interrupts . | . . . Stealth | -11 -10 -9 --------- Run | Jun Mat Mat Distress Signals 2 | . 1 1 Communications Jammed . | . . . Distress Signals . | . . . Times Spotted 29 | 1 10 18 Peak Tracking Total 6 | 1 4 6 Tactical Retreats 1 | . . 1 Traps | -11 -10 -9 ------- Run | Jun Mat Mat Traps Triggered 3 | . 3 . Indirectly . | . . . Trap Hack Attempts . | . . . Triggered . | . . . Disarmed . | . . . Reprogrammed 6 | . 6 . Reused . | . . . Traps Extracted . | . . . Installed . | . . . Triggered . | . . . Machines | -11 -10 -9 ---------- Run | Jun Mat Mat Machines Disabled 2 | . 1 1 Max in Single Turn 1 | . 1 1 Machines Repaired . | . . . Machines Sabotaged . | . . . Overloaded Fab Kills . | . . . Hacking | -11 -10 -9 --------- Run | Jun Mat Mat Machines Accessed 3 | . 3 . Terminals 2 | . 2 . Fabricators . | . . . Repair Stations 1 | . 1 . Recycling Units . | . . . Scanalyzers . | . . . Garrison Access . | . . . Total Hacks 7 | . 7 . Successful 4 | . 4 . Failed 3 | . 3 . Catastrophic . | . . . Database Lockouts . | . . . Manual . | . . . Terminals 5 | . 5 . Fabricators . | . . . Repair Stations 2 | . 2 . Recycling Units . | . . . Scanalyzers . | . . . Garrison Access . | . . . Terminal Hacks 3 | . 3 . Record 2 | . 2 . Reprogram Traps 1 | . 1 . Fabricator Hacks . | . . . Repair Station Hacks 1 | . 1 . Scan Component 1 | . 1 . Recycling Unit Hacks . | . . . Scanalyzer . | . . . Garrison Access Hacks . | . . . Unauthorized Hacks . | . . . Terminals . | . . . Fabricators . | . . . Repair Stations . | . . . Recycling Units . | . . . Scanalyzers . | . . . Garrison Access . | . . . Data Cores Recovered . | . . . Used . | . . . Hacking Detections 2 | . 2 . Full Trace Events . | . . . Feedback Events . | . . . Feedback Blocked . | . . . Robot Schematics Acquired . | . . . Robots Built . | . . . Authchips . | . . . Time . | . . . Total Robot Build Rating . | . . . Part Schematics Acquired . | . . . Parts Built . | . . . Authchips . | . . . Time . | . . . Total Part Build Rating . | . . . Parts Repaired . | . . . Time . | . . . Parts Recycled . | . . . Recycled Matter . | . . . Retrieved Matter . | . . . Retrieved Components . | . . . Parts Scanalyzed . | . . . Part Schematics Acquired . | . . . Parts Damaged . | . . . Bothacking | -11 -10 -9 ------------ Run | Jun Mat Mat Used RIF Installer . | . . . Robots Hacked . | . . . Non-combat . | . . . Combat . | . . . Robot Hacks Applied . | . . . Relay Couplers Released . | . . . Fabnet Peak Effective % . | . . . Robots Rewired . | . . . Allies Hacked . | . . . Hacks Repelled . | . . . Allies | -11 -10 -9 -------- Run | Jun Mat Mat Total Allies . | . . . Largest Group . | . . . Highest-Rated Group . | . . . Highest-Rated Ally . | . . . Total Orders . | . . . Ally Attacks . | . . . Total Damage . | . . . Kills . | . . . Allies Corrupted . | . . . Allies Melted . | . . . Intel | -11 -10 -9 ------- Run | Jun Mat Mat Robot Analysis Total . | . . . Derelict Logs Recovered . | . . . Drone Launches . | . . . Drone Recoveries . | . . . Exploration | -11 -10 -9 ------------- Run | Jun Mat Mat Turns Passed 1653 | 106 907 640 Spaces Moved 574 | 80 312 182 Core 21 | 17 . 4 Treads . | . . . Legs 553 | 63 312 178 Wheels . | . . . Hover . | . . . Flight . | . . . Fastest Speed 50 | 50 120 260 Average Speed 248 | 105 243 319 Slowest Speed 1450 | 120 400 1450 Overloaded Moves . | . . . Propulsion Burnouts . | . . . Robots Hopped . | . . . Cave-ins Triggered . | . . . Exploration Rate (%) 29 | 7 55 26 Regions Visited 2 Branch Regions . Pre-discovered Areas . | . . . Known Exits Taken . | . . . Unknown Exits Taken 2 | 1 1 . Scrap Searched . | . . . Spaces Dug . | . . . Terrain Destroyed 77 | . 2 75 Melee . | . . . Projectile . | . . . AOE 77 | . 2 75 Terrain Rammed . | . . . Walls Destroyed . | . . . Machines Disabled . | . . . Actions | -11 -10 -9 --------- Run | Jun Mat Mat Total 707 | 97 390 220 Wait . | . . . Move 572 | 79 311 182 Hop . | . . . Pick Up 44 | 10 26 8 Fast Attach . | . . . Attach 17 | 5 6 6 Detach 1 | . . 1 Swap 6 | . 3 3 Drop 6 | . 6 . Fire 55 | 2 34 19 Melee 1 | . . 1 Ram . | . . . Kick 5 | 1 4 . Crush . | . . . Escape Stasis . | . . . Rewire . | . . . Trap . | . . . Miscellaneous . | . . . Route ------- -11/Junkyard -10/Materials -9/Materials History --------- Turn | Location | Event 2 | -11/Junkyard | Met Revision 17 76 | -11/Junkyard | Discovered new exit (range 8) 107 | -11/Junkyard | Entered Materials 314 | -10/Materials | Build established: Mutant 855 | -10/Materials | Discovered new exit (range 15) 1014 | -10/Materials | Entered another Materials area 1014 | -9/Materials | Evolved 2 slots: Power x1, Propulsion x1 1614 | -9/Materials | Core integrity fell below 50% 1642 | -9/Materials | Core integrity fell below 20% 1649 | -9/Materials | Lost 6 parts (1p2n1u2w) 1654 | -9/Materials | Destroyed by Y-45 Defender with Beam Rifle Last Messages --------------- U-05 Engineer lays Concrete. K-01 Serf collects debris. U-05 Engineer lays Concrete. U-05 Engineer builds a Wall. U-05 Engineer lays Concrete. U-05 Engineer builds a Wall. K-01 Serf collects debris. U-05 Engineer lays Concrete. K-01 Serf collects debris. U-05 Engineer builds a Wall. R-06 Scavenger collects Lgt. Ion Engine. U-05 Engineer lays Concrete. Acquired 62 matter. U-05 Engineer lays Concrete. K-01 Serf collects debris. U-05 Engineer lays Concrete. U-05 Engineer builds a Wall. R-06 Scavenger collects Tractor Beam. K-01 Serf collects debris. Critical hit (Burn: +37). Map ----- +----------------------------------------------------+ | ?????????????????????????????????????????????????? | | ?????????????????????????????????????????????????? | | ?????????????????????????????????????????????????? | | ?????????????????????????????????????????????????? | | ?????????????????????????????????????????????????? | | ?????????????????????????????????????????????????? | | ?????????????????????????????????????????????????? | | ????????????????#####?#######????????????????????? | | ??????????????? # ###+#### ###?????????? | | ??????????????" [ """ # ????????? | | ??????????????" "R" ????????? | | ????????????""" " " # ????????? | | ?????????? #####???????????????? | | ????????????????###### # ###???????????????????? | | ?????????????????????# # # #???????????????????? | | ?????????????######### # # #???????????????????? | | ?????????????# !! # k# #???????????????????? | | ?????????????+ !/ ##u ###???????????????? ??? | | ?????????????# # u##????????????????? ??? | | ?????????????# # #????????????????? ??? | | ?????????????# # #????????????????? ??? | | ?????????????# """ # t##????????????????? ??? | | ?????????????# """ [## #?????##########?? ??? | | ?????????????# """ # =##?????# #?? #?? | | ?????????????# # r%######## """ " #?# #?? | | ?????????????####+# ##k@[ # """ T #?# #?? | | ??????????????# [! # """ " #?# #?? | | ??????????????# + #?# #?? | | ?????????????## """ # """ ### #?? | | ?????????????# Y """ # """ # # ### | | ?????????????## R" # """ ## | | ?????????????## [[[ """ # # # | | ????????????? [ [ ########## # | | ??????????? [ / | | ?????????? #######+########?###T### # | | ???????????# % # ?? ?????????????## # | | ???????????# "" ### ??""?????????????## # | | ???????????? "Y ??# ??????????????????## ## | | ??????????????"" ??# ???????????????????# #? | | ??????????????? ???# ???????????????????# #? | | ???????????????? ???? ???????????????????# #? | | ??????????????????????? ???????????????????# #? | | ??????????????????????? ???????????????????# # | | ????????????????????????????????????????????# + | | ????????????????????????????????????????????# # | | ????????????????????????????????????????????# #? | | ????????????????????????????????????????????# #? | | ??????????????????????????????????#+######+## #? | | ??????????????????????????????????# ## | | ??????????????????????????????? | +----------------------------------------------------+ Best States ------------- Heat Dissipation 38 Energy Generation 10 Energy Capacity 250 Matter Stores 300 Matter Capacity 350 Sight Range 16 Terrain Scan Density 10 Evasion (%) 55 Offensive Hacking 10 Item Schematics ----------------- None Robot Schematics ------------------ None Fabricated ------------ Nothing Alien Tech Used ----------------- None Achievements -------------- None Challenges ------------ None Game ------ Seed NavigationRemoteSteel Manual? 0 Play Time 00:40:50 Cumulative 2.4 hours Start 2023.08.13 @ 19:13:29 End 2023.08.14 @ 08:51:50 Sessions 2 Manual Loads 0 Difficulty Rogue Special Mode None Game No. 2 Rogue 2 Adventurer 0 Explorer 0 Win Type - Total 0 Types 0/0/0/0/0/0/0/0/0 Lore% 0 Gallery% 3 Achievement% 3 Wizard Run 0 Options --------- ASCII 0 Keyboard 0 Movement Arrows Keybinds 0 Fullscreen 1 Font 18/SmallcapsGlow Map View 76x50 Tactical HUD 0 Map Filters NONE Filters NONE Steam 1 RUN: bb23fd29-62d5-425e-898e-03be0867c21e